[Event "*** Titled Tuesday Blitz"]
[Site "Chess.com"]
[Date "2020.05.05"]
[Round "4"]
[White "Nastya_Rakhmangulova"]
[Black "JozefKneht"]
[Result "0-1"]
[WhiteElo "2292"]
[BlackElo "2471"]
[TimeControl "180+1"]
[EndTime "10:40:59 PDT"]
[Termination "JozefKneht won by checkmate"]

1. e4 {[%clk 0:03:00.9]} 1... e5 {[%clk 0:02:56]} 2. Nf3 {[%clk 0:03:01.4]} 2...
Nc6 {[%clk 0:02:55.9]} 3. c3 {[%clk 0:03:02.1]} 3... Nf6 {[%clk 0:02:54.5]} 4.
d4 {[%clk 0:03:01.1]} 4... exd4 {[%clk 0:02:53.8]} 5. e5 {[%clk 0:03:01.1]} 5...
Nd5 {[%clk 0:02:54.3]} 6. cxd4 {[%clk 0:03:01.5]} 6... Bb4+ {[%clk 0:02:44.7]}
7. Bd2 {[%clk 0:03:01.6]} 7... Bxd2+ {[%clk 0:02:37.5]} 8. Qxd2 {[%clk
0:03:02.5]} 8... d6 {[%clk 0:02:37.5]} 9. Nc3 {[%clk 0:03:01.8]} 9... Nxc3
{[%clk 0:02:31.2]} 10. Qxc3 {[%clk 0:03:02.7]} 10... O-O {[%clk 0:02:27.8]} 11.
Bb5 {[%clk 0:03:00.7]} 11... Bg4 {[%clk 0:02:25]} 12. Bxc6 {[%clk 0:02:57.2]}
12... bxc6 {[%clk 0:02:25]} 13. O-O {[%clk 0:02:57.5]} 13... Rb8 {[%clk
0:02:15.5]} 14. b3 {[%clk 0:02:52.7]} 14... Qd7 {[%clk 0:02:08.3]} 15. Rac1
{[%clk 0:02:49.4]} 15... Rb6 {[%clk 0:02:07.9]} 16. h3 {[%clk 0:02:49]} 16...
Bh5 {[%clk 0:02:06.8]} 17. Nd2 {[%clk 0:02:43.5]} 17... f6 {[%clk 0:01:56.1]}
18. Nc4 {[%clk 0:02:40]} 18... Rb5 {[%clk 0:01:52.8]} 19. a4 {[%clk 0:02:10.9]}
19... Rbb8 {[%clk 0:01:35.4]} 20. exd6 {[%clk 0:02:10.6]} 20... cxd6 {[%clk
0:01:34.4]} 21. Na5 {[%clk 0:02:11.3]} 21... Bf7 {[%clk 0:01:23.8]} 22. Nxc6
{[%clk 0:02:06.1]} 22... Rxb3 {[%clk 0:01:22.8]} 23. Qa5 {[%clk 0:02:04.8]}
23... Ra8 {[%clk 0:01:10.6]} 24. Rfe1 {[%clk 0:02:03.7]} 24... Qb7 {[%clk
0:01:00.6]} 25. Re7 {[%clk 0:02:01.3]} 25... Qb6 {[%clk 0:01:00.7]} 26. Qf5
{[%clk 0:01:37.6]} 26... a5 {[%clk 0:00:30.8]} 27. Qd7 {[%clk 0:01:18.3]} 27...
Rb1 {[%clk 0:00:29.8]} 28. Rxf7 {[%clk 0:01:06.4]} 28... Rxc1+ {[%clk 0:00:26]}
29. Kh2 {[%clk 0:01:07]} 29... Kh8 {[%clk 0:00:17.3]} 30. Qe7 {[%clk 0:00:16.2]}
30... Rg8 {[%clk 0:00:06.3]} 31. Rf8 {[%clk 0:00:12.9]} 31... Qxc6 {[%clk
0:00:03.4]} 32. Qd8 {[%clk 0:00:11.4]} 32... Qd5 {[%clk 0:00:02.4]} 33. h4
{[%clk 0:00:03.9]} 33... Rxf8 {[%clk 0:00:02.7]} 34. Qxf8+ {[%clk 0:00:03.8]}
34... Qg8 {[%clk 0:00:03.6]} 35. Qxd6 {[%clk 0:00:04.5]} 35... Rc8 {[%clk
0:00:03.6]} 36. Qa6 {[%clk 0:00:04.5]} 36... h6 {[%clk 0:00:04.5]} 37. Qxa5
{[%clk 0:00:04.9]} 37... Rd8 {[%clk 0:00:05]} 38. Qc5 {[%clk 0:00:04.9]} 38...
Qd5 {[%clk 0:00:05.9]} 39. a5 {[%clk 0:00:04.9]} 39... Qxd4 {[%clk 0:00:05.8]}
40. Qc7 {[%clk 0:00:03.7]} 40... Qxh4+ {[%clk 0:00:05.2]} 41. Kg1 {[%clk
0:00:03.9]} 41... Rd1# {[%clk 0:00:05.2]} 0-1

[Event "*** Titled Tuesday Blitz"]
[Site "Chess.com"]
[Date "2020.05.05"]
[Round "4"]
[White "Salem-AR"]
[Black "ljuks68"]
[Result "1-0"]
[WhiteElo "2974"]
[BlackElo "2362"]
[TimeControl "180+1"]
[EndTime "10:41:00 PDT"]
[Termination "Salem-AR won on time"]

1. d4 {[%clk 0:02:45.1]} 1... d5 {[%clk 0:02:59.3]} 2. c4 {[%clk 0:02:44.8]}
2... c6 {[%clk 0:02:59.4]} 3. Nf3 {[%clk 0:02:44.5]} 3... Nf6 {[%clk 0:02:59.5]}
4. Nc3 {[%clk 0:02:45.1]} 4... dxc4 {[%clk 0:02:59.4]} 5. e4 {[%clk 0:02:45.1]}
5... b5 {[%clk 0:02:58.6]} 6. Be2 {[%clk 0:02:45.8]} 6... e6 {[%clk 0:02:52.1]}
7. O-O {[%clk 0:02:44.7]} 7... Be7 {[%clk 0:02:43.2]} 8. a4 {[%clk 0:02:44.4]}
8... b4 {[%clk 0:02:38.4]} 9. e5 {[%clk 0:02:44.2]} 9... bxc3 {[%clk 0:02:38.4]}
10. exf6 {[%clk 0:02:44.1]} 10... Bxf6 {[%clk 0:02:38.5]} 11. bxc3 {[%clk
0:02:45]} 11... O-O {[%clk 0:02:34.2]} 12. Bxc4 {[%clk 0:02:45]} 12... c5 {[%clk
0:02:31.7]} 13. d5 {[%clk 0:02:19.6]} 13... e5 {[%clk 0:01:31.3]} 14. Re1 {[%clk
0:02:12]} 14... Nd7 {[%clk 0:01:30.8]} 15. a5 {[%clk 0:02:09.6]} 15... Rb8
{[%clk 0:01:16.2]} 16. Bd3 {[%clk 0:01:59.6]} 16... e4 {[%clk 0:01:04]} 17. Rxe4
{[%clk 0:01:11.1]} 17... Bxc3 {[%clk 0:01:02.9]} 18. Rh4 {[%clk 0:00:43.3]}
18... g6 {[%clk 0:00:45.5]} 19. Bg5 {[%clk 0:00:38.3]} 19... Bf6 {[%clk
0:00:42.4]} 20. Bxf6 {[%clk 0:00:28.3]} 20... Nxf6 {[%clk 0:00:41.7]} 21. Bc4
{[%clk 0:00:21.9]} 21... Bg4 {[%clk 0:00:38.7]} 22. h3 {[%clk 0:00:20.6]} 22...
Bxf3 {[%clk 0:00:38]} 23. Qxf3 {[%clk 0:00:21.5]} 23... Nxd5 {[%clk 0:00:37.6]}
24. Re4 {[%clk 0:00:17.5]} 24... Nf6 {[%clk 0:00:22.7]} 25. Rd1 {[%clk
0:00:15.7]} 25... Qxd1+ {[%clk 0:00:14]} 26. Qxd1 {[%clk 0:00:16.6]} 26... Nxe4
{[%clk 0:00:14.4]} 27. Qd5 {[%clk 0:00:16.5]} 27... Nf6 {[%clk 0:00:13.1]} 28.
Qd6 {[%clk 0:00:15]} 28... Kg7 {[%clk 0:00:12.2]} 29. Qc7 {[%clk 0:00:13.9]}
29... Ne4 {[%clk 0:00:10.5]} 30. Qxa7 {[%clk 0:00:12.3]} 30... Nd2 {[%clk
0:00:09.8]} 31. Qxc5 {[%clk 0:00:11.1]} 31... Nxc4 {[%clk 0:00:06.9]} 32. Qxc4
{[%clk 0:00:12]} 32... Kg8 {[%clk 0:00:06]} 33. h4 {[%clk 0:00:11.8]} 33... h5
{[%clk 0:00:04.2]} 34. g4 {[%clk 0:00:11.2]} 34... hxg4 {[%clk 0:00:03.2]} 35.
Qxg4 {[%clk 0:00:11.3]} 35... Rb5 {[%clk 0:00:03.2]} 36. Qa4 {[%clk 0:00:07.9]}
36... Rb1+ {[%clk 0:00:01.9]} 37. Kg2 {[%clk 0:00:07.9]} 37... Ra8 {[%clk
0:00:01.9]} 38. h5 {[%clk 0:00:07.8]} 38... gxh5 {[%clk 0:00:01.4]} 39. Qe4
{[%clk 0:00:08.5]} 1-0

[Event "*** Titled Tuesday Blitz"]
[Site "Chess.com"]
[Date "2020.05.05"]
[Round "4"]
[White "GHANDEEVAM2003"]
[Black "731291"]
[Result "1-0"]
[WhiteElo "2882"]
[BlackElo "2685"]
[TimeControl "180+1"]
[EndTime "10:41:01 PDT"]
[Termination "GHANDEEVAM2003 won on time"]

1. e4 {[%clk 0:03:00.9]} 1... e6 {[%clk 0:02:58.7]} 2. d4 {[%clk 0:02:59.7]}
2... d5 {[%clk 0:02:58.7]} 3. Nc3 {[%clk 0:03:00.3]} 3... Bb4 {[%clk 0:02:58]}
4. e5 {[%clk 0:03:00.2]} 4... c5 {[%clk 0:02:57.7]} 5. Bd2 {[%clk 0:02:59.5]}
5... Nh6 {[%clk 0:02:57]} 6. a3 {[%clk 0:02:58.5]} 6... Bxc3 {[%clk 0:02:57.1]}
7. Bxc3 {[%clk 0:02:59.4]} 7... b6 {[%clk 0:02:55.6]} 8. Bb5+ {[%clk 0:02:56.9]}
8... Bd7 {[%clk 0:02:54.4]} 9. Be2 {[%clk 0:02:55.7]} 9... Nf5 {[%clk
0:02:51.8]} 10. Nf3 {[%clk 0:02:52.5]} 10... Nc6 {[%clk 0:02:49]} 11. Qd2 {[%clk
0:02:40.3]} 11... cxd4 {[%clk 0:02:48.1]} 12. Nxd4 {[%clk 0:02:41.2]} 12...
Ncxd4 {[%clk 0:02:47.9]} 13. Bxd4 {[%clk 0:02:42.1]} 13... Nxd4 {[%clk
0:02:47.9]} 14. Qxd4 {[%clk 0:02:43]} 14... Qc7 {[%clk 0:02:47.6]} 15. Bd3
{[%clk 0:02:38.3]} 15... O-O {[%clk 0:02:36]} 16. O-O {[%clk 0:02:35.4]} 16...
Qc5 {[%clk 0:02:29.2]} 17. Qh4 {[%clk 0:02:30.7]} 17... h6 {[%clk 0:02:25.5]}
18. a4 {[%clk 0:02:30.6]} 18... d4 {[%clk 0:02:16]} 19. Qe4 {[%clk 0:02:20.8]}
19... g6 {[%clk 0:02:12.7]} 20. h4 {[%clk 0:02:19.3]} 20... Bc6 {[%clk
0:02:01.5]} 21. Qf4 {[%clk 0:02:19.7]} 21... Qd5 {[%clk 0:02:01.6]} 22. f3
{[%clk 0:02:17.7]} 22... h5 {[%clk 0:01:57]} 23. Rfe1 {[%clk 0:02:17.6]} 23...
Rac8 {[%clk 0:01:51.7]} 24. Qh6 {[%clk 0:02:10.8]} 24... Qd8 {[%clk 0:01:41.8]}
25. Bxg6 {[%clk 0:01:48.3]} 25... fxg6 {[%clk 0:01:41.4]} 26. Qxg6+ {[%clk
0:01:49.2]} 26... Kh8 {[%clk 0:01:42.2]} 27. Qxh5+ {[%clk 0:01:47.5]} 27... Kg7
{[%clk 0:01:40.7]} 28. Qg4+ {[%clk 0:01:45.6]} 28... Kf7 {[%clk 0:01:35.6]} 29.
Rad1 {[%clk 0:01:42.4]} 29... Rg8 {[%clk 0:01:25.2]} 30. Qf4+ {[%clk 0:01:41.4]}
30... Ke8 {[%clk 0:01:24.4]} 31. Rxd4 {[%clk 0:01:39.7]} 31... Qe7 {[%clk
0:01:24]} 32. Red1 {[%clk 0:01:32.2]} 32... Qg7 {[%clk 0:01:18]} 33. R1d2 {[%clk
0:01:30.8]} 33... Rf8 {[%clk 0:01:15.3]} 34. Qe3 {[%clk 0:01:27.4]} 34... Rxf3
{[%clk 0:01:10.5]} 35. Qe1 {[%clk 0:01:20.2]} 35... Rg3 {[%clk 0:01:01.7]} 36.
Re4 {[%clk 0:01:13.7]} 36... Bxe4 {[%clk 0:00:57.6]} 37. Qxe4 {[%clk 0:01:14.6]}
37... Rg4 {[%clk 0:00:42]} 38. Qd3 {[%clk 0:01:13.6]} 38... Qc7 {[%clk
0:00:34.6]} 39. h5 {[%clk 0:00:57.9]} 39... Qc5+ {[%clk 0:00:34.1]} 40. Rf2
{[%clk 0:00:54.9]} 40... Rf4 {[%clk 0:00:21.1]} 41. Qg6+ {[%clk 0:00:48.9]}
41... Kd7 {[%clk 0:00:21.5]} 42. Qd3+ {[%clk 0:00:47]} 42... Kc7 {[%clk
0:00:19.2]} 43. Qd6+ {[%clk 0:00:46.5]} 43... Qxd6 {[%clk 0:00:04.1]} 44. exd6+
{[%clk 0:00:47.4]} 44... Kxd6 {[%clk 0:00:03.3]} 45. Rxf4 {[%clk 0:00:48]} 45...
Rxc2 {[%clk 0:00:04.1]} 46. Rh4 {[%clk 0:00:48.6]} 46... Rc8 {[%clk 0:00:02.8]}
47. Kf2 {[%clk 0:00:47.2]} 47... Ke5 {[%clk 0:00:02.2]} 48. Ke3 {[%clk 0:00:47]}
48... Kf5 {[%clk 0:00:03.1]} 49. h6 {[%clk 0:00:45.7]} 49... e5 {[%clk
0:00:03.2]} 50. h7 {[%clk 0:00:44]} 50... Rh8 {[%clk 0:00:04.1]} 51. b4 {[%clk
0:00:40.6]} 1-0

[Event "*** Titled Tuesday Blitz"]
[Site "Chess.com"]
[Date "2020.05.05"]
[Round "4"]
[White "Redbandit87"]
[Black "BlackBoarder"]
[Result "1-0"]
[WhiteElo "2452"]
[BlackElo "2666"]
[TimeControl "180+1"]
[EndTime "10:41:01 PDT"]
[Termination "Redbandit87 won by resignation"]

1. d4 {[%clk 0:03:00.9]} 1... e6 {[%clk 0:02:59.3]} 2. Bf4 {[%clk 0:03:01.4]}
2... Nf6 {[%clk 0:02:59.4]} 3. e3 {[%clk 0:03:01.8]} 3... c5 {[%clk 0:02:59.5]}
4. c3 {[%clk 0:03:01.7]} 4... Nc6 {[%clk 0:02:59.9]} 5. Nd2 {[%clk 0:03:01.9]}
5... d5 {[%clk 0:02:59.9]} 6. Bd3 {[%clk 0:03:00.1]} 6... Bd6 {[%clk 0:02:55.1]}
7. Bxd6 {[%clk 0:03:00.1]} 7... Qxd6 {[%clk 0:02:56]} 8. f4 {[%clk 0:03:01]}
8... O-O {[%clk 0:02:49.4]} 9. Ngf3 {[%clk 0:03:00.6]} 9... cxd4 {[%clk
0:02:49.4]} 10. cxd4 {[%clk 0:03:01.5]} 10... Ng4 {[%clk 0:02:47.2]} 11. Bxh7+
{[%clk 0:02:33.4]} 11... Kxh7 {[%clk 0:02:25.9]} 12. Ng5+ {[%clk 0:02:33.3]}
12... Kg8 {[%clk 0:02:26]} 13. Qxg4 {[%clk 0:02:33.9]} 13... e5 {[%clk
0:02:26.5]} 14. Qh5 {[%clk 0:02:23]} 14... Qh6 {[%clk 0:02:26.3]} 15. Qxh6
{[%clk 0:02:11.6]} 15... gxh6 {[%clk 0:02:27.2]} 16. Ngf3 {[%clk 0:02:12.2]}
16... exd4 {[%clk 0:02:25.7]} 17. exd4 {[%clk 0:02:01]} 17... Nb4 {[%clk
0:02:18.1]} 18. O-O {[%clk 0:01:56.2]} 18... Nd3 {[%clk 0:02:09.1]} 19. Ne5
{[%clk 0:01:44.8]} 19... Nxb2 {[%clk 0:01:59.3]} 20. Rab1 {[%clk 0:01:40.9]}
20... Na4 {[%clk 0:01:58.6]} 21. Rfc1 {[%clk 0:01:30]} 21... Nb6 {[%clk
0:01:47.1]} 22. Rc5 {[%clk 0:01:22.6]} 22... Bf5 {[%clk 0:01:42.5]} 23. Rb2
{[%clk 0:01:13.2]} 23... f6 {[%clk 0:01:40.1]} 24. Nef3 {[%clk 0:01:09.7]} 24...
Na4 {[%clk 0:01:27.6]} 25. Rxd5 {[%clk 0:01:07.5]} 25... Be6 {[%clk 0:01:11.3]}
26. Rd6 {[%clk 0:01:03.9]} 26... Nxb2 {[%clk 0:01:10.6]} 27. Rxe6 {[%clk
0:01:04]} 27... Rae8 {[%clk 0:01:09]} 28. f5 {[%clk 0:00:52.1]} 28... Kf7 {[%clk
0:00:52.4]} 29. d5 {[%clk 0:00:52.2]} 29... Rd8 {[%clk 0:00:39.4]} 30. Ne4
{[%clk 0:00:49.2]} 30... Rxd5 {[%clk 0:00:36.9]} 31. Rxf6+ {[%clk 0:00:46.2]}
31... Ke7 {[%clk 0:00:35.3]} 32. Re6+ {[%clk 0:00:41.1]} 32... Kd8 {[%clk
0:00:30.5]} 33. g4 {[%clk 0:00:29.7]} 33... Nc4 {[%clk 0:00:26.3]} 34. Rxh6
{[%clk 0:00:22]} 34... Ra5 {[%clk 0:00:09.4]} 35. Nd4 {[%clk 0:00:18.8]} 35...
Re8 {[%clk 0:00:07.4]} 36. Ne6+ {[%clk 0:00:18.4]} 36... Kc8 {[%clk 0:00:06.4]}
37. Nf6 {[%clk 0:00:16.4]} 37... Rxe6 {[%clk 0:00:03.9]} 38. fxe6 {[%clk
0:00:17.3]} 38... Re5 {[%clk 0:00:04.2]} 39. Nd7 {[%clk 0:00:13.2]} 39... Nd6
{[%clk 0:00:03.5]} 40. Nxe5 {[%clk 0:00:13.1]} 1-0

[Event "*** Titled Tuesday Blitz"]
[Site "Chess.com"]
[Date "2020.05.05"]
[Round "4"]
[White "sergeikim"]
[Black "JoachimMouhamad"]
[Result "1-0"]
[WhiteElo "2480"]
[BlackElo "2294"]
[TimeControl "180+1"]
[EndTime "10:41:02 PDT"]
[Termination "sergeikim won by resignation"]

1. d4 {[%clk 0:03:00.1]} 1... Nf6 {[%clk 0:02:56.6]} 2. c4 {[%clk 0:02:59.9]}
2... g6 {[%clk 0:02:39.7]} 3. Nc3 {[%clk 0:02:59.6]} 3... d5 {[%clk 0:02:37.8]}
4. cxd5 {[%clk 0:02:58.9]} 4... Nxd5 {[%clk 0:02:38.7]} 5. e4 {[%clk 0:02:58.7]}
5... Nxc3 {[%clk 0:02:38.2]} 6. bxc3 {[%clk 0:02:59.6]} 6... Bg7 {[%clk
0:02:38.1]} 7. Bc4 {[%clk 0:02:59.8]} 7... O-O {[%clk 0:02:37.8]} 8. Ne2 {[%clk
0:02:59.6]} 8... c5 {[%clk 0:02:36.8]} 9. O-O {[%clk 0:02:59.5]} 9... Nc6 {[%clk
0:02:20.4]} 10. Be3 {[%clk 0:02:58.8]} 10... Na5 {[%clk 0:02:12.2]} 11. Bd3
{[%clk 0:02:57.8]} 11... b6 {[%clk 0:01:53.5]} 12. Qd2 {[%clk 0:02:57.1]} 12...
e5 {[%clk 0:01:40.5]} 13. Bh6 {[%clk 0:02:50]} 13... exd4 {[%clk 0:01:36]} 14.
Bxg7 {[%clk 0:02:48.6]} 14... Kxg7 {[%clk 0:01:35.2]} 15. cxd4 {[%clk
0:02:48.5]} 15... cxd4 {[%clk 0:01:36.1]} 16. f4 {[%clk 0:02:48.7]} 16... f6
{[%clk 0:01:34.8]} 17. f5 {[%clk 0:02:44.3]} 17... Nc6 {[%clk 0:01:22.8]} 18.
Nf4 {[%clk 0:02:39.7]} 18... Ne5 {[%clk 0:01:13.7]} 19. Rac1 {[%clk 0:02:34.7]}
19... Bd7 {[%clk 0:01:11.5]} 20. Ba6 {[%clk 0:02:09]} 20... d3 {[%clk
0:00:52.2]} 21. Bxd3 {[%clk 0:01:32.4]} 21... Rf7 {[%clk 0:00:42.8]} 22. Bc4
{[%clk 0:01:21.9]} 22... Re7 {[%clk 0:00:40.1]} 23. Bd5 {[%clk 0:01:19.6]} 23...
Rc8 {[%clk 0:00:38.6]} 24. fxg6 {[%clk 0:00:45]} 24... hxg6 {[%clk 0:00:36.9]}
25. Qd4 {[%clk 0:00:38.8]} 25... Rxc1 {[%clk 0:00:34.8]} 26. Rxc1 {[%clk
0:00:37.6]} 26... Bg4 {[%clk 0:00:31]} 27. h3 {[%clk 0:00:35.9]} 27... Bd7
{[%clk 0:00:28.4]} 28. Bb3 {[%clk 0:00:30.4]} 28... Qe8 {[%clk 0:00:21.6]} 29.
Rc7 {[%clk 0:00:24.7]} 29... Bc8 {[%clk 0:00:20.8]} 30. Qd6 {[%clk 0:00:19.3]}
30... Rxc7 {[%clk 0:00:18.6]} 31. Qxc7+ {[%clk 0:00:19.3]} 31... Kh6 {[%clk
0:00:19.2]} 32. Qd6 {[%clk 0:00:15.4]} 32... Kg7 {[%clk 0:00:14.1]} 33. Nd5
{[%clk 0:00:14.2]} 33... Qf8 {[%clk 0:00:11.8]} 34. Qc7+ {[%clk 0:00:12.8]}
34... Kh6 {[%clk 0:00:10.9]} 35. Ne7 {[%clk 0:00:10.7]} 35... Ba6 {[%clk
0:00:07.1]} 36. Ng8+ {[%clk 0:00:09.5]} 36... Kg5 {[%clk 0:00:05.9]} 37. Qc1+
{[%clk 0:00:08.8]} 37... Kh5 {[%clk 0:00:04.4]} 38. Bd1+ {[%clk 0:00:05.2]}
38... Kh4 {[%clk 0:00:04.6]} 39. Qf4+ {[%clk 0:00:04.1]} 1-0

[Event "*** Titled Tuesday Blitz"]
[Site "Chess.com"]
[Date "2020.05.05"]
[Round "4"]
[White "louis198"]
[Black "pouya21"]
[Result "1-0"]
[WhiteElo "2550"]
[BlackElo "2782"]
[TimeControl "180+1"]
[EndTime "10:41:03 PDT"]
[Termination "louis198 won by resignation"]

1. d4 {[%clk 0:03:00]} 1... f5 {[%clk 0:02:57.9]} 2. Bf4 {[%clk 0:02:59.7]} 2...
Nf6 {[%clk 0:02:57]} 3. e3 {[%clk 0:03:00.1]} 3... d6 {[%clk 0:02:57.4]} 4. h3
{[%clk 0:03:00.5]} 4... Nc6 {[%clk 0:02:49.6]} 5. a4 {[%clk 0:02:59.6]} 5... e5
{[%clk 0:02:48]} 6. Bh2 {[%clk 0:02:55.9]} 6... Qe7 {[%clk 0:02:46.1]} 7. d5
{[%clk 0:02:44.1]} 7... Nd8 {[%clk 0:02:45.7]} 8. Nf3 {[%clk 0:02:43.3]} 8... g6
{[%clk 0:02:37]} 9. Be2 {[%clk 0:02:34.4]} 9... Bg7 {[%clk 0:02:36.8]} 10. O-O
{[%clk 0:02:34]} 10... a5 {[%clk 0:02:35.9]} 11. Na3 {[%clk 0:02:31.7]} 11...
O-O {[%clk 0:02:34.9]} 12. Nb5 {[%clk 0:02:30.4]} 12... Nf7 {[%clk 0:02:23.8]}
13. Bc4 {[%clk 0:02:18.2]} 13... g5 {[%clk 0:02:18.2]} 14. Ra3 {[%clk
0:02:17.1]} 14... h5 {[%clk 0:02:08.6]} 15. Nd2 {[%clk 0:02:03.9]} 15... f4
{[%clk 0:02:00.7]} 16. exf4 {[%clk 0:02:02.7]} 16... gxf4 {[%clk 0:01:58.1]} 17.
Re1 {[%clk 0:02:01.7]} 17... c6 {[%clk 0:01:46]} 18. Nc3 {[%clk 0:01:45.8]}
18... Qc7 {[%clk 0:01:41.5]} 19. Nde4 {[%clk 0:01:41.1]} 19... b5 {[%clk
0:01:19.3]} 20. axb5 {[%clk 0:01:38.7]} 20... cxb5 {[%clk 0:01:19.5]} 21. Bxb5
{[%clk 0:01:31.1]} 21... Nh6 {[%clk 0:01:07.7]} 22. Bc6 {[%clk 0:01:29.4]} 22...
Rb8 {[%clk 0:00:59.2]} 23. Nb5 {[%clk 0:01:29.4]} 23... Rxb5 {[%clk 0:00:59]}
24. Bxb5 {[%clk 0:01:30.3]} 24... Nxe4 {[%clk 0:00:54.1]} 25. Rxe4 {[%clk
0:01:29.7]} 25... Bf5 {[%clk 0:00:52.4]} 26. Rc4 {[%clk 0:01:29.6]} 26... Qb6
{[%clk 0:00:52.8]} 27. Rb3 {[%clk 0:01:25.5]} 27... Qd8 {[%clk 0:00:40.8]} 28.
Rc6 {[%clk 0:01:16]} 28... Bg6 {[%clk 0:00:38.7]} 29. Bd3 {[%clk 0:01:14.9]}
29... e4 {[%clk 0:00:32.8]} 30. Be2 {[%clk 0:01:14.3]} 30... Qg5 {[%clk
0:00:29.5]} 31. h4 {[%clk 0:01:11.7]} 31... Qe5 {[%clk 0:00:21.5]} 32. Rb7
{[%clk 0:01:06.5]} 32... Nf5 {[%clk 0:00:19.5]} 33. Bxh5 {[%clk 0:01:05.3]}
33... Nxh4 {[%clk 0:00:17.4]} 34. Bxg6 {[%clk 0:01:04]} 34... Qg5 {[%clk
0:00:18]} 35. Bxe4 {[%clk 0:01:01.6]} 35... f3 {[%clk 0:00:17]} 36. Bg3 {[%clk
0:01:01.2]} 36... fxg2 {[%clk 0:00:14.1]} 37. Rcc7 {[%clk 0:00:58.1]} 37... Be5
{[%clk 0:00:13.6]} 38. Bxg2 {[%clk 0:00:47.9]} 38... Nxg2 {[%clk 0:00:10.4]} 39.
Kxg2 {[%clk 0:00:47.4]} 39... Rxf2+ {[%clk 0:00:10.6]} 40. Kxf2 {[%clk
0:00:43.1]} 40... Qxg3+ {[%clk 0:00:10.6]} 41. Ke2 {[%clk 0:00:43.4]} 41... Qg2+
{[%clk 0:00:09.6]} 42. Ke3 {[%clk 0:00:40.6]} 42... Qg5+ {[%clk 0:00:08]} 43.
Kd3 {[%clk 0:00:40.5]} 43... Qg3+ {[%clk 0:00:07.9]} 44. Kc4 {[%clk 0:00:39.7]}
44... Qf4+ {[%clk 0:00:07.8]} 45. Kb5 {[%clk 0:00:38.5]} 45... Qb4+ {[%clk
0:00:08.2]} 46. Kc6 {[%clk 0:00:37]} 46... Qa4+ {[%clk 0:00:06.6]} 47. Rb5
{[%clk 0:00:31.8]} 47... Qc4+ {[%clk 0:00:06.4]} 48. Kb6 {[%clk 0:00:29.2]}
48... Bd4+ {[%clk 0:00:06.9]} 49. Ka6 {[%clk 0:00:28.2]} 49... Qxc7 {[%clk
0:00:07]} 50. Qxd4 {[%clk 0:00:28.1]} 1-0

[Event "*** Titled Tuesday Blitz"]
[Site "Chess.com"]
[Date "2020.05.05"]
[Round "4"]
[White "MichailovM"]
[Black "Bossche-CM"]
[Result "1-0"]
[WhiteElo "2375"]
[BlackElo "2445"]
[TimeControl "180+1"]
[EndTime "10:41:03 PDT"]
[Termination "MichailovM won by checkmate"]

1. e4 {[%clk 0:03:00.7]} 1... c5 {[%clk 0:02:59.8]} 2. Nf3 {[%clk 0:03:00.1]}
2... e6 {[%clk 0:03:00.2]} 3. d4 {[%clk 0:03:00.4]} 3... cxd4 {[%clk 0:03:01.1]}
4. Nxd4 {[%clk 0:03:01.3]} 4... Nf6 {[%clk 0:03:01.7]} 5. Nc3 {[%clk 0:03:01.9]}
5... Qb6 {[%clk 0:03:02.2]} 6. Nb3 {[%clk 0:02:58.3]} 6... a6 {[%clk 0:03:00]}
7. Bd3 {[%clk 0:02:56.4]} 7... Nc6 {[%clk 0:02:59.2]} 8. O-O {[%clk 0:02:56.9]}
8... Qc7 {[%clk 0:02:51.8]} 9. f4 {[%clk 0:02:56.3]} 9... d6 {[%clk 0:02:46.1]}
10. a4 {[%clk 0:02:52]} 10... b6 {[%clk 0:02:38.8]} 11. Be3 {[%clk 0:02:51.6]}
11... Bb7 {[%clk 0:02:37.6]} 12. Qf3 {[%clk 0:02:48.5]} 12... h5 {[%clk
0:02:36.2]} 13. Kh1 {[%clk 0:02:46]} 13... Ng4 {[%clk 0:02:32.7]} 14. Bg1 {[%clk
0:02:44.8]} 14... Be7 {[%clk 0:02:33.2]} 15. a5 {[%clk 0:02:26.9]} 15... bxa5
{[%clk 0:02:26.7]} 16. Na4 {[%clk 0:02:25.7]} 16... Bd8 {[%clk 0:02:00.6]} 17.
Bb6 {[%clk 0:02:00.6]} 17... Qe7 {[%clk 0:01:59]} 18. Qg3 {[%clk 0:01:36.8]}
18... Bxb6 {[%clk 0:01:48.7]} 19. Nxb6 {[%clk 0:01:36.4]} 19... Rb8 {[%clk
0:01:45]} 20. Nc4 {[%clk 0:01:36.6]} 20... Nb4 {[%clk 0:01:41.3]} 21. Rxa5
{[%clk 0:01:32]} 21... Nxd3 {[%clk 0:01:38]} 22. cxd3 {[%clk 0:01:32.9]} 22...
Bc8 {[%clk 0:01:19.5]} 23. Nd4 {[%clk 0:01:28.5]} 23... Qc7 {[%clk 0:01:13.9]}
24. e5 {[%clk 0:01:23.9]} 24... d5 {[%clk 0:01:07.2]} 25. Nd6+ {[%clk
0:01:24.4]} 25... Kf8 {[%clk 0:01:04.2]} 26. Ra2 {[%clk 0:01:15.2]} 26... Qc5
{[%clk 0:00:54.9]} 27. Nf3 {[%clk 0:01:04]} 27... Bd7 {[%clk 0:00:40.6]} 28. Qe1
{[%clk 0:00:56.3]} 28... h4 {[%clk 0:00:28]} 29. Ra5 {[%clk 0:00:48.3]} 29...
Qc7 {[%clk 0:00:19.5]} 30. Rxa6 {[%clk 0:00:45.1]} 30... Rxb2 {[%clk 0:00:17.5]}
31. Ra8+ {[%clk 0:00:45]} 31... Rb8 {[%clk 0:00:17.5]} 32. Rxb8+ {[%clk
0:00:36.9]} 32... Qxb8 {[%clk 0:00:18.4]} 33. h3 {[%clk 0:00:36.8]} 33... Nh6
{[%clk 0:00:17.8]} 34. Ng5 {[%clk 0:00:31.3]} 34... Be8 {[%clk 0:00:16.4]} 35.
Qa1 {[%clk 0:00:29.9]} 35... Nf5 {[%clk 0:00:15.7]} 36. Nxf5 {[%clk 0:00:29.6]}
36... exf5 {[%clk 0:00:16.6]} 37. Rb1 {[%clk 0:00:29.8]} 37... Qc8 {[%clk
0:00:16.3]} 38. Qa3+ {[%clk 0:00:29.6]} 38... Kg8 {[%clk 0:00:16.2]} 39. Rc1
{[%clk 0:00:25.5]} 39... Qd8 {[%clk 0:00:15.4]} 40. Qd6 {[%clk 0:00:18.9]} 40...
Qxd6 {[%clk 0:00:13.3]} 41. exd6 {[%clk 0:00:19.8]} 41... Rh6 {[%clk 0:00:13.7]}
42. Rc8 {[%clk 0:00:20.2]} 42... Rxd6 {[%clk 0:00:03.1]} 43. Rxe8# {[%clk
0:00:19.9]} 1-0